fUST/lending_fUST_20240408
["ID","MTS","AMOUNT","RATE_DAILY","PERIOD"]
[321848420,1712562664389,-153.0,0.00033616,2]
[321848421,1712562664400,-201995.1388198,0.0004,5]
[321848422,1712562664418,-174.0288036,0.00024656,2]
[321848423,1712562664429,-45757.862412,0.0004,5]
[321848424,1712562664442,-315.21316599,0.0004,5]
[321848427,1712562831038,3087.85627332,0.0002,2]
[321848433,1712562856984,2563.24271846,0.000125,2]
[321848434,1712562878754,150.0,2.75e-05,120]
[321848443,1712563100520,-781.66926533,0.0002353,2]
[321848444,1712563100543,-240.61118676,0.0002353,2]
[321848445,1712563100567,-156.54809607,0.00023531,2]
[321848446,1712563100588,-300.0,0.00023531,2]
[321848447,1712563100609,-300.0,0.00023531,2]
[321848448,1712563100630,-154.9690062,0.00023532,2]
[321848449,1712563100650,-886.58989039,0.00023532,2]
[321848450,1712563100672,-3717.29210644,0.00023532,2]
[321848451,1712563100692,-211.34462556,0.00023533,2]
[321848452,1712563100714,-282.66267272,0.00023533,2]
[321848453,1712563100735,-192.96186117,0.00023533,2]
[321848454,1712563100754,-2092.79838707,0.00023533,2]
[321848455,1712563100775,-5564.97168216,0.00023533,2]
[321848456,1712563100795,-524.59337771,0.00023534,2]
[321848457,1712563100818,-157.22434872,0.00023534,2]
[321848458,1712563100840,-24900.0,0.00023549,2]
[321848459,1712563100864,-169.29477266,0.00024257,2]
[321848460,1712563100887,-317.40340285,0.00024357,2]
[321848461,1712563100909,-169.29477266,0.00024357,2]
[321848462,1712563100929,-169.29477266,0.00024457,2]
[321848463,1712563100951,-155.07133281,0.00024554,2]
[321848464,1712563100972,-435.35442115,0.00024554,2]
[321848465,1712563100993,-188.58893471,0.00024555,2]
[321848466,1712563101014,-3689.4610842,0.00024556,2]
[321848469,1712563148778,16043.50232186,5e-05,2]
[321848470,1712563164807,2968.69219815,5e-05,2]
[321848471,1712563197994,152.9792359,0.0002,2]
[321848522,1712563736607,-12000.0,0.00021948,2]
[321848523,1712563736716,-8229.962722,0.00021948,2]
[321848559,1712563832210,-156.54809607,0.00021274,2]
[321848560,1712563832221,-157.22434872,0.00021275,2]
[321848561,1712563832231,-227.70287968,0.00021275,2]
[321848562,1712563832245,-54.95979304,0.00021275,2]
[321848563,1712563832254,-157.50344,0.00021276,2]
[321848564,1712563832265,-656.51176696,0.00021445,2]
[321848690,1712563838257,-1436.28662011,0.00021445,2]
[321848692,1712563838267,-1485.26994661,0.00021445,2]
[321848694,1712563838276,-781.66926533,0.00021446,2]
[321848696,1712563838285,-571.95247133,0.00021447,2]
[321848698,1712563838295,-1172.46851441,0.00021449,2]
[321848700,1712563838304,-3717.29210644,0.00022,2]
[321848702,1712563838314,-300.0,0.00022045,2]
[321848704,1712563838323,-300.0,0.00022045,2]
[321848706,1712563838332,-250.0,0.00022051,2]
[321848708,1712563838341,-5758.89201675,0.00022367,2]
[321848736,1712563838600,-3511.85881395,0.00022367,2]
[321848738,1712563838609,-277.72797745,0.00022396,2]
[321848740,1712563838618,-4200.282583,0.00022411,2]
[321848742,1712563838627,-169.29477266,0.00022496,2]
[321848744,1712563838637,-11893.6727746,0.00022599,2]
[321848747,1712563838646,-165.003281,0.00023025,2]
[321848748,1712563838655,-166.574209,0.00023281,2]
[321848750,1712563838664,-420.0,0.00023955,2]
[321848752,1712563838673,-420.0,0.0002425,2]
[321848754,1712563838682,-187.95541009,0.00024454,2]
[321848756,1712563838691,-195.29867267,0.00024454,2]
[321848758,1712563838700,-155.31338381,0.00024554,2]
[321848760,1712563838709,-182.64016645,0.00024554,2]
[321848762,1712563838718,-180.25528887,0.00024554,2]
[321848764,1712563838727,-472.23807133,0.00024554,2]
[321848766,1712563838736,-164.31112226,0.00024554,2]
[321848768,1712563838746,-312.00577526,0.00024554,2]
[321848771,1712563838756,-272.38437865,0.00024554,2]
[321848773,1712563838765,-13444.27304364,0.00024554,2]
[321848775,1712563838774,-935.37988423,0.00024554,2]
[321848777,1712563838783,-155.13126938,0.00024554,2]
[321848779,1712563838792,-867.98570584,0.00024554,2]
[321848781,1712563838801,-215.58014229,0.00024554,2]
[321848783,1712563838810,-1124.61118854,0.00024554,2]
[321848785,1712563838819,-163.70809443,0.00024555,2]
[321848786,1712563838828,-27814.40582668,0.00024556,2]
[321849249,1712563843610,-688.99595907,0.00021444,2]
[321849251,1712563843622,-488.94360961,0.00024556,2]
[321849254,1712563843635,-373.29,0.00024556,2]
[321849256,1712563843648,-371.54,0.00024556,2]
[321849258,1712563843662,-14848.9216689,0.00024556,2]
[321849260,1712563843673,-946.72308658,0.00024654,2]
[321849262,1712563843684,-1269.46863255,0.00024655,2]
[321849264,1712563843695,-867.40633988,0.00024655,2]
[321849266,1712563843707,-510.37387361,0.00024655,2]
[321849268,1712563843718,-210.77487099,0.00024655,2]
[321849271,1712563843736,-280.81740973,0.00024655,2]
[321849272,1712563843749,-500.0,0.00024657,2]
[321849273,1712563843760,-500.0,0.00024657,2]
[321849274,1712563843771,-500.0,0.00024657,2]
[321849275,1712563843781,-500.0,0.00024657,2]
[321849276,1712563843792,-466.47411882,0.00024657,2]
[321849277,1712563843804,-34.75236192,0.00024657,2]
[321849278,1712563843815,-259.4446065,0.00024657,2]
[321849279,1712563843828,-250.62442191,0.00024657,2]
[321849280,1712563843839,-509.97234657,0.00024657,2]
[321849281,1712563843850,-500.0,0.00024657,2]
[321849282,1712563843861,-500.0,0.00024657,2]
[321849283,1712563843872,-500.0,0.00024657,2]
[321849284,1712563843883,-500.0,0.00024657,2]
[321849285,1712563843894,-500.0,0.00024657,2]
[321849287,1712563843904,-542.94810193,0.00024657,2]
[321849289,1712563843915,-504.81462946,0.00024657,2]
[321849291,1712563843925,-500.0,0.00024657,2]
[321849293,1712563843937,-502.62062407,0.00024657,2]
[321849295,1712563843947,-503.36198932,0.00024657,2]
[321849297,1712563843958,-498.61627668,0.00024657,2]
[321850011,1712564529211,160.1081193,0.00020747,2]
[321850013,1712564561432,24900.0,0.0002048,2]
[321850049,1712564755110,-473.12701109,0.00021363,2]
[321850050,1712564755130,-562.64730962,0.00021363,2]
[321850051,1712564755150,-1930.22588294,0.00021363,2]
[321850052,1712564755169,-156.54809607,0.00021364,2]
[321850053,1712564755189,-220.14831517,0.00021364,2]
[321850054,1712564755207,-781.66926533,0.00021364,2]
[321850055,1712564755226,-157.22434872,0.00021365,2]
[321850056,1712564755245,-188.58893471,0.00021365,2]
[321850057,1712564755265,-5564.97168216,0.00021365,2]
[321850058,1712564755284,-282.66267272,0.00021366,2]
[321850059,1712564755303,-2579.2553814,0.00021366,2]
[321850060,1712564755322,-688.99595907,0.00021367,2]
[321850061,1712564755342,-300.0,0.00021367,2]
[321850062,1712564755364,-300.0,0.00021367,2]
[321850063,1712564755384,-47586.56218939,0.00021367,2]
[321850064,1712564755404,-174.38243722,0.00021371,2]
[321850065,1712564755423,-3925.88648522,0.00021373,2]
[321850066,1712564755444,-239.40285988,0.00021468,2]
[321850067,1712564755462,-1062.30778535,0.00021468,2]
[321850068,1712564755482,-598.76608327,0.00021468,2]
[321850069,1712564755501,-432.70295579,0.00021469,2]
[321850070,1712564755521,-5249.2068108,0.00021485,2]
[321850071,1712564755540,-157.50344,0.00021889,2]
[321850072,1712564755559,-423.3179575,0.00021894,2]
[321850073,1712564755579,-156.33283191,0.00021995,2]
[321850074,1712564755598,-203.8385335,0.00021995,2]
[321850075,1712564755616,-1219.24973628,0.00021995,2]
[321850076,1712564755635,-1335.93922591,0.00021995,2]
[321850077,1712564755654,-462.5,0.00021996,2]
[321850078,1712564755674,-422.64630741,0.00021996,2]
[321850079,1712564755695,-155.79225386,0.00021996,2]
[321850080,1712564755714,-155.76948004,0.00021997,2]
[321850081,1712564755733,-155.46979536,0.00021997,2]
[321850082,1712564755753,-213.9109815,0.00022,2]
[321850083,1712564755773,-3717.29210644,0.00022,2]
[321850084,1712564755793,-3993.85704147,0.00022448,2]
[321850085,1712564755813,-2053.47761616,0.00022452,2]
[321850086,1712564755834,-781.64567627,0.00022456,2]
[321850087,1712564755855,-170.262356,0.0002277,2]
[321850088,1712564755875,-174.3824372,0.00022964,2]
[321850089,1712564755895,-242.6744587,0.00023,2]
[321850090,1712564755917,-420.0,0.00023234,2]
[321850091,1712564755938,-176.5993789,0.00023288,2]
[321850092,1712564755958,-420.0,0.00023504,2]
[321850093,1712564755978,-159.94972831,0.00024457,2]
[321850094,1712564755998,-681.00831457,0.000245,2]
[321850095,1712564756018,-174.3824372,0.00024557,2]
[321850096,1712564756037,-680.31278621,0.00024655,2]
[321850097,1712564756056,-271.64376324,0.00024655,2]
[321850098,1712564756075,-1131.10155601,0.00024655,2]
[321850099,1712564756095,-524.27891833,0.00024655,2]
[321850100,1712564756114,-1624.42344916,0.00024655,2]
[321850101,1712564756135,-1864.3753617,0.00024655,2]
[321850102,1712564756155,-343.65205762,0.00024655,2]
[321850103,1712564756259,-4487.41247563,0.00024656,2]
[321850104,1712564756279,-500.0,0.00024657,2]
[321850105,1712564756299,-500.0,0.00024657,2]
[321850106,1712564756319,-500.0,0.00024657,2]
[321850107,1712564756340,-500.0,0.00024657,2]
[321850108,1712564756360,-500.0,0.00024657,2]
[321850109,1712564756381,-500.0,0.00024657,2]
[321850110,1712564756402,-500.0,0.00024657,2]
[321850111,1712564756424,-500.0,0.00024657,2]
[321850112,1712564756446,-500.0,0.00024657,2]
[321850113,1712564756466,-511.86668145,0.00024657,2]
[321850114,1712564756485,-500.0,0.00024657,2]
[321850115,1712564756505,-16072.27971713,0.00024657,2]
[321850116,1712564756525,-500.0,0.00024657,2]
[321850117,1712564756545,-3130.94,0.00024657,2]
[321850118,1712564756565,-500.0,0.00024657,2]
[321850119,1712564756586,-1677.34,0.00024657,2]
[321850120,1712564756606,-500.0,0.00024657,2]
[321850121,1712564756628,-500.0,0.00024657,2]
[321850122,1712564756649,-161.48303183,0.00024657,2]
[321850123,1712564756669,-508.91770825,0.00024657,2]
[321850124,1712564756691,-507.97452563,0.00024657,2]
[321850125,1712564756713,-500.0,0.00024657,2]
[321850126,1712564756733,-500.0,0.00024657,2]
[321850127,1712564756753,-500.0,0.00024657,2]
[321850128,1712564756773,-500.0,0.00024657,2]
[321850129,1712564756793,-500.0,0.00024657,2]
[321850130,1712564756814,-504.12027196,0.00024657,2]
[321850131,1712564756837,-500.0,0.00024657,2]
[321850132,1712564756857,-500.0,0.00024657,2]
[321850133,1712564756878,-500.0,0.00024657,2]
[321850134,1712564756899,-500.0,0.00024657,2]
[321850135,1712564756920,-500.0,0.00024657,2]
[321850136,1712564756940,-241.25421724,0.00024657,2]
[321850137,1712564756959,-500.7620368,0.00024657,2]
[321850138,1712564756979,-500.0,0.00024657,2]
[321850139,1712564756999,-500.0,0.00024657,2]
[321850140,1712564757020,-500.0,0.00024657,2]
[321850141,1712564757040,-500.0,0.00024657,2]
[321850142,1712564757060,-537.5,0.00024657,2]
[321850143,1712564757081,-500.0,0.00024657,2]
[321850144,1712564757101,-500.0,0.00024657,2]
[321850145,1712564757122,-500.0,0.00024657,2]
[321850146,1712564757142,-500.0,0.00024657,2]
[321850147,1712564757163,-500.0,0.00024657,2]
[321850148,1712564757183,-500.0,0.00024657,2]
[321850149,1712564757204,-500.0,0.00024657,2]
[321850150,1712564757223,-506.50904171,0.00024657,2]
[321850151,1712564757243,-427.17817238,0.00024657,2]
[321850152,1712564757263,-500.0,0.00024657,2]
[321850153,1712564757283,-500.0,0.00024657,2]
[321850154,1712564757303,-500.0,0.00024657,2]
[321850155,1712564757324,-500.0,0.00024657,2]
[321850156,1712564757344,-500.0,0.00024657,2]
[321850157,1712564757365,-500.0,0.00024657,2]
[321850158,1712564757385,-500.0,0.00024657,2]
[321850159,1712564757407,-500.0,0.00024657,2]
[321850160,1712564757429,-500.0,0.00024657,2]
[321850161,1712564757452,-833.33,0.00024657,2]
[321850162,1712564757473,-500.0,0.00024657,2]
[321850163,1712564757492,-2916.66,0.00024657,2]
[321850164,1712564757513,-507.75752146,0.00024657,2]
[321850165,1712564757532,-501.48178272,0.00024657,2]
[321850166,1712564757553,-469.88156871,0.00024657,2]
[321850167,1712564757574,-501.10275097,0.00024657,2]
[321850168,1712564757595,-500.0,0.00024657,2]
[321850169,1712564757617,-500.0,0.00024657,2]
[321850170,1712564757637,-500.0,0.00024657,2]
[321850171,1712564757657,-500.0,0.00024657,2]
[321850172,1712564757678,-500.0,0.00024657,2]
[321850173,1712564757700,-500.0,0.00024931,2]
[321850174,1712564757721,-500.0,0.00024931,2]
[321850175,1712564757741,-500.0,0.00024931,2]
[321850176,1712564757761,-500.0,0.00024931,2]
[321850177,1712564757781,-500.0,0.00024931,2]
[321850178,1712564757804,-487.74945045,0.00024931,2]
[321850183,1712564825094,-188.19613238,0.00024556,2]
[321850184,1712564825115,-2579.2553814,0.00024656,2]
[321850185,1712564825137,-300.0,0.00024656,2]
[321850186,1712564825159,-300.0,0.00024656,2]
[321850187,1712564825180,-1607.45,0.00024657,2]
[321850188,1712564825202,-500.0,0.00024657,2]
[321850189,1712564825223,-258.89817553,0.00024657,2]
[321850190,1712564825246,-500.0,0.00024657,2]
[321850191,1712564825354,-500.0,0.00024657,2]
[321850192,1712564825377,-500.0,0.00024657,2]
[321850193,1712564825398,-308.92214912,0.00024831,2]
[321850194,1712564825420,-12.25054955,0.00024931,2]
[321850195,1712564825441,-500.0,0.00024931,2]
[321850196,1712564825462,-226.28,0.00024931,2]
[321850197,1712564825485,-500.0,0.00024931,2]
[321850198,1712564825506,-500.0,0.00024931,2]
[321850199,1712564825528,-500.0,0.00024931,2]
[321850200,1712564825549,-500.0,0.00024931,2]
[321850201,1712564825570,-500.0,0.00024931,2]
[321850202,1712564825591,-515.1,0.00024931,2]
[321850203,1712564825613,-324.00162427,0.00024931,2]
[321850204,1712564825635,-354.5,0.00024931,2]
[321850205,1712564825656,-425.856571,0.00024931,2]
[321850206,1712564825676,-500.0,0.00024931,2]
[321850207,1712564825698,-833.33,0.00024931,2]
[321850208,1712564825718,-2916.66,0.00024931,2]
[321850209,1712564825742,-500.0,0.00024931,2]
[321850210,1712564825763,-500.0,0.00024931,2]
[321850211,1712564825783,-500.0,0.00024931,2]
[321850212,1712564825805,-500.0,0.00024931,2]
[321850213,1712564825827,-500.0,0.00024931,2]
[321850214,1712564825850,-1607.45,0.00024931,2]
[321850215,1712564825873,-500.0,0.00024931,2]
[321850216,1712564825895,-500.0,0.00024931,2]
[321850217,1712564825917,-500.0,0.00025205,2]
[321850218,1712564825938,-500.0,0.00025205,2]
[321850219,1712564825959,-500.0,0.00025205,2]
[321850220,1712564825983,-539.89314016,0.00025205,2]
[321850221,1712564826003,-500.0,0.00025205,2]
[321850222,1712564826024,-500.0,0.00025205,2]
[321850223,1712564826044,-291.98831307,0.00025205,2]
[321850224,1712564826065,-262.55,0.00025205,2]
[321850225,1712564826087,-500.0,0.00025205,2]
[321850226,1712564826109,-833.33,0.00025205,2]
[321850227,1712564826129,-2916.66,0.00025205,2]
[321850228,1712564826150,-500.0,0.00025205,2]
[321850229,1712564826171,-500.0,0.00025205,2]
[321850230,1712564826193,-500.0,0.00025205,2]
[321850231,1712564826214,-1607.45,0.00025205,2]
[321850232,1712564826237,-500.0,0.00025205,2]
[321850233,1712564826259,-500.0,0.00025205,2]
[321850234,1712564826281,-159.94972826,0.00025223,2]
[321850235,1712564826302,-282.66267272,0.00025475,2]
[321850236,1712564826322,-400.0,0.00025476,2]
[321850237,1712564826342,-276.78016921,0.00025476,2]
[321850238,1712564826362,-209.58192005,0.00025476,2]
[321850239,1712564826382,-1975.03858149,0.00025476,2]
[321850240,1712564826402,-156.48191588,0.00025477,2]
[321850241,1712564826423,-433.14110518,0.00025477,2]
[321850242,1712564826443,-514.72512487,0.00025479,2]
[321850243,1712564826465,-425.82,0.00025479,2]
[321850244,1712564826487,-500.0,0.00025479,2]
[321850245,1712564826506,-500.0,0.00025479,2]
[321850246,1712564826527,-500.0,0.00025479,2]
[321850247,1712564826549,-500.0,0.00025479,2]
[321850248,1712564826570,-833.33,0.00025479,2]
[321850249,1712564826591,-2916.66,0.00025479,2]
[321850250,1712564826612,-500.0,0.00025479,2]
[321850251,1712564826633,-500.0,0.00025479,2]
[321850252,1712564826654,-500.0,0.00025479,2]
[321850253,1712564826675,-1607.45,0.00025479,2]
[321850254,1712564826697,-500.0,0.00025479,2]
[321850255,1712564826718,-155.0,0.00025752,2]
[321850256,1712564826740,-500.0,0.00025753,2]
[321850257,1712564826762,-500.0,0.00025753,2]
[321850258,1712564826784,-506.67,0.00025753,2]
[321850259,1712564826807,-500.0,0.00025753,2]
[321850260,1712564826829,-833.33,0.00025753,2]
[321850261,1712564826853,-2916.66,0.00025753,2]
[321850262,1712564826876,-500.0,0.00025753,2]
[321850263,1712564826897,-500.0,0.00025753,2]
[321850264,1712564826919,-1607.45,0.00025753,2]
[321850265,1712564826940,-500.0,0.00025753,2]
[321850266,1712564826961,-159.94972826,0.00025989,2]
[321850267,1712564826980,-5417.2456297,0.00026019,2]
[321850268,1712564827003,-357.80293055,0.0002602,2]
[321850269,1712564827022,-156.54809607,0.0002602,2]
[321850270,1712564827042,-1230.27021172,0.0002602,2]
[321850271,1712564827062,-402.17746592,0.0002602,2]
[321850272,1712564827082,-327.9349825,0.0002602,2]
[321850273,1712564827101,-290.42793485,0.0002602,2]
[321850274,1712564827121,-1069.76107659,0.00026021,2]
[321850275,1712564827140,-545.84349623,0.00026022,2]
[321850276,1712564827160,-261.83541363,0.00026024,2]
[321850277,1712564827181,-280.28423753,0.00026025,2]
[321850278,1712564827201,-1237.45534105,0.00026025,2]
[321850279,1712564827221,-500.0,0.00026027,2]
[321850280,1712564827243,-500.0,0.00026027,2]
[321850281,1712564827264,-500.0,0.00026027,2]
[321850282,1712564827286,-833.33,0.00026027,2]
[321850283,1712564827308,-2916.66,0.00026027,2]
[321850284,1712564827329,-344.2,0.00026027,2]
[321850285,1712564827350,-500.0,0.00026027,2]
[321850286,1712564827370,-1607.45,0.00026027,2]
[321850287,1712564827392,-500.0,0.00026027,2]
[321850288,1712564827493,-781.66926533,0.00026299,2]
[321850289,1712564827515,-370.45382675,0.00026299,2]
[321850290,1712564827538,-1737.1037055,0.000263,2]
[321850291,1712564827560,-687.71208168,0.000263,2]
[321850292,1712564827582,-255.17478696,0.000263,2]
[321850293,1712564827604,-6172.84647725,0.000263,2]
[321850294,1712564827625,-500.0,0.00026301,2]
[321850295,1712564827647,-500.0,0.00026301,2]
[321850296,1712564827668,-833.33,0.00026301,2]
[321850297,1712564827688,-2916.66,0.00026301,2]
[321850298,1712564827709,-500.0,0.00026301,2]
[321850299,1712564827729,-1607.45,0.00026301,2]
[321850300,1712564827758,-500.0,0.00026301,2]
[321850301,1712564827779,-2000.0,0.00026382,2]
[321850302,1712564827801,-500.0,0.00026575,2]
[321850303,1712564827822,-500.0,0.00026575,2]
[321850304,1712564827845,-833.33,0.00026575,2]
[321850305,1712564827867,-2916.66,0.00026575,2]
[321850306,1712564827890,-500.0,0.00026575,2]
[321850307,1712564827912,-1607.45,0.00026575,2]
[321850308,1712564827936,-500.0,0.00026575,2]
[321850309,1712564827957,-248.0,0.0002672,2]
[321850310,1712564827978,-159.94972826,0.00026755,2]
[321850311,1712564828000,-247.80961966,0.00026849,2]
[321850312,1712564828021,-500.0,0.00026849,2]
[321850313,1712564828043,-833.33,0.00026849,2]
[321850314,1712564828063,-2916.66,0.00026849,2]
[321850315,1712564828083,-500.0,0.00026849,2]
[321850316,1712564828104,-1607.45,0.00026849,2]
[321850317,1712564828125,-500.0,0.00026849,2]
[321850318,1712564828144,-159.41717954,0.00027,2]
[321850319,1712564828164,-1573.13173796,0.00027,2]
[321850320,1712564828186,-420.0,0.00027122,2]
[321850321,1712564828209,-163.15877878,0.00027123,2]
[321850322,1712564828230,-833.33,0.00027123,2]
[321850323,1712564828254,-2916.66,0.00027123,2]
[321850324,1712564828276,-500.0,0.00027123,2]
[321850325,1712564828296,-1607.45,0.00027123,2]
[321850326,1712564828318,-500.0,0.00027123,2]
[321850327,1712564828337,-500.0,0.00027397,2]
[321850328,1712564828359,-833.33,0.00027397,2]
[321850329,1712564828384,-2916.66,0.00027397,2]
[321850330,1712564828408,-500.0,0.00027397,2]
[321850331,1712564828432,-1607.45,0.00027397,2]
[321850332,1712564828456,-500.0,0.00027397,2]
[321850333,1712564828477,-171.462467,0.00027397,2]
[321850334,1712564828502,-191.107631,0.00027397,2]
[321850335,1712564828524,-164.619341,0.00027397,2]
[321850336,1712564828545,-781.64567627,0.00027456,2]
[321850337,1712564828566,-171.17808372,0.000275,17]
[321850338,1712564828587,-159.94972826,0.00027521,2]
[321850339,1712564828608,-187.95207728,0.00027669,2]
[321850340,1712564828629,-155.05426899,0.00027669,2]
[321850341,1712564828649,-311.83459824,0.00027669,2]
[321850342,1712564828671,-833.33,0.00027671,2]
[321850343,1712564828690,-2916.66,0.00027671,2]
[321850344,1712564828711,-500.0,0.00027671,2]
[321850345,1712564828731,-1607.45,0.00027671,2]
[321850346,1712564828754,-500.0,0.00027671,2]
[321850347,1712564828773,-701.90890899,0.00027943,2]
[321850348,1712564828794,-833.33,0.00027945,2]
[321850349,1712564828816,-2916.66,0.00027945,2]
[321850350,1712564828837,-299.52412226,0.00027945,2]
[321850351,1712564828859,-1607.45,0.00027945,2]
[321850352,1712564828884,-500.0,0.00027945,2]
[321850353,1712564828904,-500.0,0.00028,2]
[321850354,1712564828927,-833.33,0.00028219,2]
[321850355,1712564828946,-2916.66,0.00028219,2]
[321850356,1712564828966,-1607.45,0.00028219,2]
[321850357,1712564828989,-500.0,0.00028219,2]
[321850358,1712564829010,-159.94972826,0.00028286,2]
[321850359,1712564829033,-833.33,0.00028493,2]
[321850360,1712564829053,-641.96363516,0.00028493,2]
[321850361,1712564829097,-2274.69636484,0.00028493,2]
[321850362,1712564829117,-1607.45,0.00028493,2]
[321850363,1712564829138,-341.44,0.00028493,2]
[321850364,1712564829157,-500.0,0.000287,2]
[321850365,1712564829177,-1751.5,0.00028765,2]
[321850366,1712564829199,-833.33,0.00028767,2]
[321850367,1712564829219,-2916.66,0.00028767,2]
[321850368,1712564829242,-1607.45,0.00028767,2]
[321850369,1712564829263,-156.50748119,0.00029021,3]
[321850370,1712564829284,-833.33,0.00029041,2]
[321850371,1712564829305,-2916.66,0.00029041,2]
[321850372,1712564829326,-1607.45,0.00029041,2]
[321850373,1712564829347,-159.94972826,0.00029052,2]
[321850374,1712564829369,-833.33,0.00029315,2]
[321850375,1712564829389,-2916.66,0.00029315,2]
[321850376,1712564829410,-1607.45,0.00029315,2]
[321850377,1712564829431,-833.33,0.00029589,2]
[321850378,1712564829450,-2916.66,0.00029589,2]
[321850379,1712564829470,-1607.45,0.00029589,2]
[321850380,1712564829566,-159.94972826,0.00029818,2]
[321850381,1712564829588,-587.0,0.00029834,2]
[321850382,1712564829610,-833.33,0.00029863,2]
[321850383,1712564829637,-2916.66,0.00029863,2]
[321850384,1712564829658,-1607.45,0.00029863,2]
[321850385,1712564829679,-622.94437841,0.00029864,2]
[321850386,1712564829699,-6450.8025582,0.000299,2]
[321850387,1712564829720,-1002.41021764,0.0003,4]
[321850388,1712564829742,-154.9690062,0.0003,4]
[321850389,1712564829762,-117056.78606723,0.0003,7]
[321850390,1712564829783,-258.0,0.0003,2]
[321850391,1712564829805,-833.33,0.00030136,2]
[321850392,1712564829826,-2916.66,0.00030136,2]
[321850393,1712564829851,-1607.45,0.00030136,2]
[321850394,1712564829874,-833.33,0.0003041,2]
[321850395,1712564829895,-2916.66,0.0003041,2]
[321850396,1712564829918,-1607.45,0.0003041,2]
[321850397,1712564829939,-159.94972826,0.00030584,2]
[321850398,1712564829960,-153.09052701,0.00030646,7]
[321850399,1712564829980,-58115.26885763,0.00030684,30]
[321850400,1712564830003,-753.73047107,0.00030684,4]
[321850401,1712564830026,-833.33,0.00030684,2]
[321850402,1712564830047,-2916.66,0.00030684,2]
[321850403,1712564830068,-1607.45,0.00030684,2]
[321850404,1712564830091,-833.41,0.00030958,2]
[321850405,1712564830112,-2916.82,0.00030958,2]
[321850406,1712564830134,-1607.48557576,0.00030958,2]
[321850407,1712564830154,-168.980999,0.00031228,2]
[321850408,1712564830175,-150.0,0.000315,2]
[321850409,1712564830196,-190.72501436,0.00032,4]
[321850410,1712564830216,-168.980999,0.00032009,2]
[321850411,1712564830240,-884.0,0.000321,2]
[321850412,1712564830262,-153.51768998,0.00032454,7]
[321850413,1712564830285,-781.64567627,0.00032456,2]
[321850414,1712564830305,-168.980999,0.00032789,2]
[321850415,1712564830326,-823.0,0.00032817,2]
[321850416,1712564830346,-258.0,0.00033,2]
[321850417,1712564830367,-258.0,0.00033,2]
[321850418,1712564830387,-158.2602703,0.00033057,7]
[321850419,1712564830407,-150.71771064,0.00033121,7]
[321850420,1712564830427,-158.2602703,0.00033411,7]
[321850421,1712564830447,-153.51768998,0.00033417,7]
[321850422,1712564830467,-158.2602703,0.00033452,7]
[321850423,1712564830496,-464.50545485,0.00034,4]
[321850424,1712564830517,-153.51768998,0.00034168,7]
[321850425,1712564830538,-3014.40245605,0.000345,15]
[321850426,1712564830560,-6854.02678516,0.00035,4]
[321850427,1712564830581,-154.9690062,0.00035,4]
[321850428,1712564830602,-595.96032213,0.00035,2]
[321850429,1712564830622,-500.0,0.00035,2]
[321850430,1712564830643,-1772.03364387,0.00035,4]
[321850431,1712564830666,-153.51768998,0.00035414,7]
[321850432,1712564830690,-421.11055818,0.00035616,4]
[321850433,1712564830710,-153.09052701,0.00035641,7]
[321850434,1712564830730,-158.2602703,0.00035777,7]
[321850435,1712564830752,-158.2602703,0.00035963,7]
[321850436,1712564830772,-258.0,0.00036,2]
[321850437,1712564830793,-258.0,0.00036,2]
[321850438,1712564830815,-1152.0,0.00036099,2]
[321850439,1712564830837,-153.51768998,0.00036695,7]
[321850440,1712564830857,-153.51768998,0.00036744,7]